[Event "*** Titled Tuesday Blitz"]
[Site "Chess.com"]
[Date "2020.04.07"]
[Round "6"]
[White "CarlosAlbornoz"]
[Black "mamonika"]
[Result "0-1"]
[WhiteElo "2703"]
[BlackElo "1949"]
[TimeControl "180+1"]
[EndTime "14:09:27 PDT"]
[Termination "mamonika won by checkmate"]

1. e4 {[%clk 0:03:00.2]} 1... c6 {[%clk 0:02:57.7]} 2. d4 {[%clk 0:02:59.9]}
2... d5 {[%clk 0:02:57.6]} 3. e5 {[%clk 0:03:00]} 3... c5 {[%clk 0:02:54.7]} 4.
dxc5 {[%clk 0:02:59.7]} 4... e6 {[%clk 0:02:54.7]} 5. a3 {[%clk 0:02:58.9]} 5...
Bxc5 {[%clk 0:02:54.2]} 6. b4 {[%clk 0:02:59]} 6... Bb6 {[%clk 0:02:49.6]} 7.
Qg4 {[%clk 0:02:59]} 7... Ne7 {[%clk 0:02:47.5]} 8. Bd3 {[%clk 0:02:57]} 8...
Nbc6 {[%clk 0:02:35.2]} 9. Nf3 {[%clk 0:02:56.3]} 9... Ng6 {[%clk 0:02:10.5]}
10. Bb2 {[%clk 0:02:54.2]} 10... Qc7 {[%clk 0:02:00.2]} 11. Bxg6 {[%clk
0:02:50.1]} 11... hxg6 {[%clk 0:02:01.1]} 12. Nbd2 {[%clk 0:02:50]} 12... a5
{[%clk 0:01:45.8]} 13. O-O {[%clk 0:02:44.8]} 13... Ne7 {[%clk 0:01:42.1]} 14.
c4 {[%clk 0:02:41]} 14... axb4 {[%clk 0:01:31.1]} 15. axb4 {[%clk 0:02:40]}
15... Rxa1 {[%clk 0:01:32]} 16. Rxa1 {[%clk 0:02:40.8]} 16... dxc4 {[%clk
0:01:29.1]} 17. Nxc4 {[%clk 0:02:36.8]} 17... O-O {[%clk 0:01:25.1]} 18. Ng5
{[%clk 0:02:30.1]} 18... Nf5 {[%clk 0:01:19.1]} 19. Qh3 {[%clk 0:02:14.7]} 19...
Rd8 {[%clk 0:01:11.9]} 20. Nd6 {[%clk 0:01:51.5]} 20... Bxf2+ {[%clk 0:00:41.3]}
21. Kh1 {[%clk 0:01:34.2]} 21... Nh6 {[%clk 0:00:27]} 22. Rf1 {[%clk 0:01:22.9]}
22... Qc2 {[%clk 0:00:19.9]} 23. Ba1 {[%clk 0:00:55.3]} 23... Qe2 {[%clk
0:00:20.1]} 24. Rc1 {[%clk 0:00:40.4]} 24... Bd7 {[%clk 0:00:19.7]} 25. Qf3
{[%clk 0:00:23.2]} 25... Qxf3 {[%clk 0:00:16]} 26. Nxf3 {[%clk 0:00:23.6]} 26...
Bc6 {[%clk 0:00:16.4]} 27. Bd4 {[%clk 0:00:19.6]} 27... Bxf3 {[%clk 0:00:14.3]}
28. Bxf2 {[%clk 0:00:18.6]} 28... Bd5 {[%clk 0:00:14.9]} 29. Bb6 {[%clk
0:00:18.3]} 29... Ra8 {[%clk 0:00:15]} 30. h3 {[%clk 0:00:14.1]} 30... Ra2
{[%clk 0:00:10]} 31. Rg1 {[%clk 0:00:14]} 31... Nf5 {[%clk 0:00:09.9]} 32. Kh2
{[%clk 0:00:14.1]} 32... Nh4 {[%clk 0:00:09.2]} 33. Kg3 {[%clk 0:00:13.9]} 33...
Nxg2 {[%clk 0:00:09.3]} 34. Rc1 {[%clk 0:00:13.6]} 34... g5 {[%clk 0:00:05.8]}
35. Rc8+ {[%clk 0:00:12.8]} 35... Kh7 {[%clk 0:00:06.4]} 36. Nxf7 {[%clk
0:00:13.3]} 36... Ra3+ {[%clk 0:00:06.3]} 37. Kf2 {[%clk 0:00:13.1]} 37... Rf3+
{[%clk 0:00:05.8]} 38. Kxg2 {[%clk 0:00:11.9]} 38... Rc3+ {[%clk 0:00:06.4]} 39.
Kf2 {[%clk 0:00:10.8]} 39... Rxc8 {[%clk 0:00:07.3]} 40. Nxg5+ {[%clk
0:00:10.9]} 40... Kg6 {[%clk 0:00:08]} 41. Nf3 {[%clk 0:00:11]} 41... Rf8 {[%clk
0:00:07.9]} 42. Ke3 {[%clk 0:00:10.7]} 42... Rxf3+ {[%clk 0:00:08.8]} 43. Kd4
{[%clk 0:00:11.4]} 43... Rxh3 {[%clk 0:00:09.7]} 44. Kc5 {[%clk 0:00:11.9]}
44... Kf5 {[%clk 0:00:10.6]} 45. Bd8 {[%clk 0:00:11.6]} 45... Rc3+ {[%clk
0:00:10.5]} 46. Kd6 {[%clk 0:00:11.8]} 46... Rc6+ {[%clk 0:00:10.2]} 47. Ke7
{[%clk 0:00:12.2]} 47... Rc4 {[%clk 0:00:09.8]} 48. b5 {[%clk 0:00:12.6]} 48...
Kxe5 {[%clk 0:00:08.9]} 49. b6 {[%clk 0:00:13.1]} 49... Kf5 {[%clk 0:00:09.1]}
50. Kd7 {[%clk 0:00:13.2]} 50... g5 {[%clk 0:00:09.3]} 51. Bxg5 {[%clk
0:00:13.2]} 51... Kxg5 {[%clk 0:00:10.2]} 52. Kd8 {[%clk 0:00:13.4]} 52... Kf5
{[%clk 0:00:10.6]} 53. Kd7 {[%clk 0:00:13.9]} 53... Rc6 {[%clk 0:00:11]} 54. Kd8
{[%clk 0:00:14.5]} 54... Rxb6 {[%clk 0:00:11.4]} 55. Kc7 {[%clk 0:00:15.1]}
55... Rc6+ {[%clk 0:00:11.9]} 56. Kb8 {[%clk 0:00:15.6]} 56... b5 {[%clk
0:00:11.3]} 57. Ka7 {[%clk 0:00:16.1]} 57... b4 {[%clk 0:00:11.8]} 58. Kb8
{[%clk 0:00:16.6]} 58... b3 {[%clk 0:00:12.7]} 59. Ka7 {[%clk 0:00:17]} 59... b2
{[%clk 0:00:13.6]} 60. Kb8 {[%clk 0:00:17.4]} 60... b1=Q+ {[%clk 0:00:13.2]} 61.
Ka7 {[%clk 0:00:18.2]} 61... Qb6+ {[%clk 0:00:11.1]} 62. Ka8 {[%clk 0:00:17.3]}
62... Rc1# {[%clk 0:00:05.1]} 0-1

[Event "*** Titled Tuesday Blitz"]
[Site "Chess.com"]
[Date "2020.04.07"]
[Round "6"]
[White "mbojan"]
[Black "vladimirdamjanovic"]
[Result "0-1"]
[WhiteElo "2684"]
[BlackElo "2526"]
[TimeControl "180+1"]
[EndTime "14:09:32 PDT"]
[Termination "vladimirdamjanovic won by checkmate"]

1. e4 {[%clk 0:03:00.9]} 1... c6 {[%clk 0:02:59.8]} 2. d4 {[%clk 0:03:01]} 2...
d5 {[%clk 0:03:00.5]} 3. Nc3 {[%clk 0:03:01.9]} 3... dxe4 {[%clk 0:03:00.5]} 4.
Nxe4 {[%clk 0:03:02.8]} 4... Bf5 {[%clk 0:03:01.1]} 5. Ng3 {[%clk 0:03:01.1]}
5... Bg6 {[%clk 0:03:01.6]} 6. h4 {[%clk 0:03:01.1]} 6... h6 {[%clk 0:03:01.8]}
7. Nf3 {[%clk 0:03:01.5]} 7... Nd7 {[%clk 0:03:02.1]} 8. h5 {[%clk 0:03:01.5]}
8... Bh7 {[%clk 0:03:02.6]} 9. Bd3 {[%clk 0:03:02.1]} 9... Bxd3 {[%clk
0:03:03.1]} 10. Qxd3 {[%clk 0:03:03]} 10... e6 {[%clk 0:03:03.7]} 11. Bd2 {[%clk
0:03:03.4]} 11... Ngf6 {[%clk 0:03:03.7]} 12. O-O-O {[%clk 0:03:03.7]} 12... Be7
{[%clk 0:03:04.2]} 13. Kb1 {[%clk 0:03:02.1]} 13... Qb6 {[%clk 0:03:03.9]} 14.
Rhe1 {[%clk 0:02:57.2]} 14... O-O {[%clk 0:02:57.7]} 15. Nf5 {[%clk 0:02:56.6]}
15... exf5 {[%clk 0:02:58.6]} 16. Rxe7 {[%clk 0:02:56.9]} 16... Qd8 {[%clk
0:02:59.5]} 17. Ree1 {[%clk 0:02:55.8]} 17... Ne4 {[%clk 0:02:57.8]} 18. Be3
{[%clk 0:02:55.7]} 18... Ndf6 {[%clk 0:02:43.8]} 19. Nd2 {[%clk 0:02:46]} 19...
Re8 {[%clk 0:02:37.2]} 20. Nxe4 {[%clk 0:02:44.1]} 20... fxe4 {[%clk 0:02:38.1]}
21. Qe2 {[%clk 0:02:42.7]} 21... Qd7 {[%clk 0:02:38.7]} 22. Rh1 {[%clk
0:02:38.3]} 22... b5 {[%clk 0:02:38.2]} 23. Rdg1 {[%clk 0:02:34.6]} 23... Ng4
{[%clk 0:02:34.4]} 24. Rh4 {[%clk 0:02:20.7]} 24... f5 {[%clk 0:02:34.2]} 25.
Rd1 {[%clk 0:02:20.5]} 25... Qd5 {[%clk 0:02:31.6]} 26. Rxg4 {[%clk 0:02:19]}
26... fxg4 {[%clk 0:02:30.5]} 27. Qxg4 {[%clk 0:02:19.9]} 27... Kh8 {[%clk
0:02:27.1]} 28. Bf4 {[%clk 0:02:12.5]} 28... a5 {[%clk 0:02:16]} 29. Be5 {[%clk
0:02:11.6]} 29... Ra7 {[%clk 0:02:16.2]} 30. Re1 {[%clk 0:01:54.6]} 30... Rf8
{[%clk 0:02:12.7]} 31. Qg6 {[%clk 0:01:45.9]} 31... Kg8 {[%clk 0:02:02.1]} 32.
Qg3 {[%clk 0:01:14.8]} 32... Qf7 {[%clk 0:01:54.2]} 33. Qe3 {[%clk 0:00:48.2]}
33... Qxh5 {[%clk 0:01:50.1]} 34. Qxe4 {[%clk 0:00:48]} 34... Qf5 {[%clk
0:01:44.3]} 35. Qxc6 {[%clk 0:00:44.8]} 35... Rc8 {[%clk 0:01:42.1]} 36. Qd5+
{[%clk 0:00:43.8]} 36... Rf7 {[%clk 0:01:38.9]} 37. Rc1 {[%clk 0:00:41.1]} 37...
Qxf2 {[%clk 0:01:36.1]} 38. Qxb5 {[%clk 0:00:39.5]} 38... Qxg2 {[%clk
0:01:36.1]} 39. a4 {[%clk 0:00:33.9]} 39... h5 {[%clk 0:01:33.8]} 40. Qxa5
{[%clk 0:00:32]} 40... h4 {[%clk 0:01:32.2]} 41. Qa6 {[%clk 0:00:29.1]} 41...
Rcf8 {[%clk 0:01:27.7]} 42. Qd6 {[%clk 0:00:13.8]} 42... h3 {[%clk 0:01:23.2]}
43. b4 {[%clk 0:00:14.1]} 43... Rf1 {[%clk 0:01:17.7]} 44. Rxf1 {[%clk
0:00:13.3]} 44... Qxf1+ {[%clk 0:01:16.3]} 45. Kb2 {[%clk 0:00:13.8]} 45... Qg2
{[%clk 0:01:06.2]} 46. b5 {[%clk 0:00:08.6]} 46... Rf6 {[%clk 0:01:06.3]} 47.
Bxf6 {[%clk 0:00:07.1]} 47... h2 {[%clk 0:01:06.2]} 48. Qb8+ {[%clk 0:00:04.6]}
48... Kh7 {[%clk 0:01:03.6]} 49. Be5 {[%clk 0:00:05.2]} 49... h1=Q {[%clk
0:01:01.5]} 50. Qc7 {[%clk 0:00:05.9]} 50... Qd1 {[%clk 0:00:54.2]} 51. Qc4
{[%clk 0:00:04.7]} 51... Qge2 {[%clk 0:00:49.9]} 52. Qxe2 {[%clk 0:00:04.1]}
52... Qxe2 {[%clk 0:00:49.5]} 53. Kb3 {[%clk 0:00:05]} 53... g5 {[%clk
0:00:44.6]} 54. c4 {[%clk 0:00:05.4]} 54... g4 {[%clk 0:00:42.7]} 55. c5 {[%clk
0:00:05.8]} 55... Qd3+ {[%clk 0:00:39.3]} 56. Kb4 {[%clk 0:00:06.1]} 56... g3
{[%clk 0:00:38]} 57. Bxg3 {[%clk 0:00:05.8]} 57... Qxg3 {[%clk 0:00:38.9]} 58.
c6 {[%clk 0:00:05.4]} 58... Qd6+ {[%clk 0:00:36.8]} 59. Kc4 {[%clk 0:00:05.8]}
59... Qa3 {[%clk 0:00:32.9]} 60. b6 {[%clk 0:00:05.3]} 60... Qxa4+ {[%clk
0:00:30.9]} 61. Kc5 {[%clk 0:00:06.2]} 61... Qa5+ {[%clk 0:00:18.4]} 62. Kd6
{[%clk 0:00:06.6]} 62... Qxb6 {[%clk 0:00:19.3]} 63. d5 {[%clk 0:00:07.5]} 63...
Qd8+ {[%clk 0:00:18.9]} 64. Kc5 {[%clk 0:00:07.3]} 64... Kg6 {[%clk 0:00:19.3]}
65. d6 {[%clk 0:00:07.7]} 65... Qa5+ {[%clk 0:00:19.7]} 66. Kd4 {[%clk
0:00:07.5]} 66... Qb4+ {[%clk 0:00:18.7]} 67. Kd5 {[%clk 0:00:08.4]} 67... Qb5+
{[%clk 0:00:18.8]} 68. Ke6 {[%clk 0:00:09]} 68... Qxc6 {[%clk 0:00:18.2]} 69.
Ke7 {[%clk 0:00:09.9]} 69... Qe4+ {[%clk 0:00:14.3]} 70. Kd8 {[%clk 0:00:10.1]}
70... Kf6 {[%clk 0:00:13.7]} 71. d7 {[%clk 0:00:10.7]} 71... Ke6 {[%clk
0:00:13.6]} 72. Ke8 {[%clk 0:00:11.2]} 72... Qg6+ {[%clk 0:00:12.7]} 73. Kd8
{[%clk 0:00:12.1]} 73... Qf7 {[%clk 0:00:13]} 74. Kc8 {[%clk 0:00:13]} 74...
Qxd7+ {[%clk 0:00:13.9]} 75. Kb8 {[%clk 0:00:13.9]} 75... Kd6 {[%clk 0:00:14.8]}
76. Ka8 {[%clk 0:00:14.8]} 76... Kc6 {[%clk 0:00:15.7]} 77. Kb8 {[%clk
0:00:15.7]} 77... Qb7# {[%clk 0:00:16.6]} 0-1

[Event "*** Titled Tuesday Blitz"]
[Site "Chess.com"]
[Date "2020.04.07"]
[Round "6"]
[White "JustaTrickstar"]
[Black "Frogo47"]
[Result "1/2-1/2"]
[WhiteElo "2656"]
[BlackElo "2499"]
[TimeControl "180+1"]
[EndTime "14:09:37 PDT"]
[Termination "Game drawn by repetition"]

1. c4 {[%clk 0:03:00.9]} 1... e5 {[%clk 0:02:57.7]} 2. Nc3 {[%clk 0:03:00.9]}
2... Nc6 {[%clk 0:02:57.8]} 3. Nf3 {[%clk 0:03:01]} 3... Nf6 {[%clk 0:02:56.4]}
4. e4 {[%clk 0:02:59.3]} 4... Bc5 {[%clk 0:02:52.6]} 5. Nxe5 {[%clk 0:02:58.8]}
5... O-O {[%clk 0:02:45.3]} 6. Nxc6 {[%clk 0:02:43.9]} 6... dxc6 {[%clk
0:02:46.2]} 7. Be2 {[%clk 0:02:43.8]} 7... Qd4 {[%clk 0:02:22.5]} 8. O-O {[%clk
0:02:41.9]} 8... Nxe4 {[%clk 0:02:22.2]} 9. Nxe4 {[%clk 0:02:35.7]} 9... Qxe4
{[%clk 0:02:22.3]} 10. d3 {[%clk 0:02:35.1]} 10... Qe5 {[%clk 0:02:22.1]} 11.
Qc2 {[%clk 0:02:17.9]} 11... Bf5 {[%clk 0:02:18.5]} 12. Rd1 {[%clk 0:02:10.3]}
12... Rad8 {[%clk 0:02:18]} 13. Rb1 {[%clk 0:01:57.7]} 13... Rfe8 {[%clk
0:02:07.8]} 14. Bf1 {[%clk 0:01:57.5]} 14... a5 {[%clk 0:02:00.9]} 15. Bd2
{[%clk 0:01:54.1]} 15... Bd4 {[%clk 0:01:55.5]} 16. Re1 {[%clk 0:01:25.7]} 16...
Qc5 {[%clk 0:01:55]} 17. Bc3 {[%clk 0:01:16.9]} 17... h6 {[%clk 0:01:44.9]} 18.
Qd2 {[%clk 0:00:52]} 18... b6 {[%clk 0:01:42.6]} 19. a3 {[%clk 0:00:29.9]} 19...
Qd6 {[%clk 0:01:34.3]} 20. Rxe8+ {[%clk 0:00:24.2]} 20... Rxe8 {[%clk
0:01:33.6]} 21. Re1 {[%clk 0:00:24.8]} 21... Rxe1 {[%clk 0:01:29.9]} 22. Qxe1
{[%clk 0:00:25.7]} 22... Kf8 {[%clk 0:01:24.5]} 23. b4 {[%clk 0:00:22.7]} 23...
axb4 {[%clk 0:01:18.5]} 24. Bxb4 {[%clk 0:00:19.2]} 24... c5 {[%clk 0:01:18.4]}
25. Bd2 {[%clk 0:00:19]} 25... Qe7 {[%clk 0:01:09.8]} 26. Qc1 {[%clk 0:00:16.5]}
26... Qf6 {[%clk 0:00:58.2]} 27. Qe1 {[%clk 0:00:11.7]} 27... Bd7 {[%clk
0:00:45]} 28. Be2 {[%clk 0:00:05.3]} 28... Bc6 {[%clk 0:00:38.7]} 29. Be3 {[%clk
0:00:05.4]} 29... Qg6 {[%clk 0:00:27.8]} 30. Bf1 {[%clk 0:00:04.5]} 30... Qe6
{[%clk 0:00:24.4]} 31. Qd2 {[%clk 0:00:03.5]} 31... Qe5 {[%clk 0:00:23.7]} 32.
Bf4 {[%clk 0:00:03.1]} 32... Qe7 {[%clk 0:00:21]} 33. Qe2 {[%clk 0:00:02.1]}
33... Qd7 {[%clk 0:00:15.9]} 34. h3 {[%clk 0:00:02.6]} 34... f6 {[%clk
0:00:15.5]} 35. Be3 {[%clk 0:00:03]} 35... Be5 {[%clk 0:00:14.6]} 36. Qd2 {[%clk
0:00:03]} 36... Bd4 {[%clk 0:00:14.6]} 37. Be2 {[%clk 0:00:03.1]} 37... Bxe3
{[%clk 0:00:14.2]} 38. Qxe3 {[%clk 0:00:03.2]} 38... Qe7 {[%clk 0:00:14.4]} 39.
Qd2 {[%clk 0:00:03.3]} 39... Qe5 {[%clk 0:00:14.2]} 40. Bd1 {[%clk 0:00:03.2]}
40... Qd4 {[%clk 0:00:14.3]} 41. a4 {[%clk 0:00:03.2]} 41... Bd7 {[%clk
0:00:13.5]} 42. Qe2 {[%clk 0:00:03.6]} 42... Bf5 {[%clk 0:00:13]} 43. Bc2 {[%clk
0:00:03.8]} 43... Qa1+ {[%clk 0:00:12.8]} 44. Kh2 {[%clk 0:00:03.8]} 44... Qd4
{[%clk 0:00:13.5]} 45. Qd2 {[%clk 0:00:03.2]} 45... Qe5+ {[%clk 0:00:13.2]} 46.
Kg1 {[%clk 0:00:03]} 46... Qd4 {[%clk 0:00:13.3]} 47. Qe2 {[%clk 0:00:03.2]}
47... Kf7 {[%clk 0:00:12.7]} 48. Qd2 {[%clk 0:00:03.1]} 48... g5 {[%clk
0:00:12.2]} 49. Qe2 {[%clk 0:00:03.4]} 49... Qe5 {[%clk 0:00:12.1]} 50. Qd2
{[%clk 0:00:03.2]} 50... Qf4 {[%clk 0:00:11.3]} 51. Qe2 {[%clk 0:00:03.2]} 51...
Qc1+ {[%clk 0:00:10.3]} 52. Kh2 {[%clk 0:00:03.1]} 52... Qf4+ {[%clk 0:00:10.8]}
53. Kg1 {[%clk 0:00:03.5]} 53... Qd6 {[%clk 0:00:11.1]} 54. Qd2 {[%clk
0:00:03.3]} 54... Bg6 {[%clk 0:00:11]} 55. Qe3 {[%clk 0:00:03.3]} 55... Qe5
{[%clk 0:00:10.7]} 56. Qd2 {[%clk 0:00:03.6]} 56... Qd4 {[%clk 0:00:10.5]} 57.
Kf1 {[%clk 0:00:03.4]} 57... f5 {[%clk 0:00:10.9]} 58. Kg1 {[%clk 0:00:03.5]}
58... f4 {[%clk 0:00:11.2]} 59. Kf1 {[%clk 0:00:03.6]} 59... Bf5 {[%clk
0:00:11.5]} 60. f3 {[%clk 0:00:03.8]} 60... Kf6 {[%clk 0:00:09.9]} 61. Qe2
{[%clk 0:00:03.2]} 61... Qe3 {[%clk 0:00:09.7]} 62. Qd1 {[%clk 0:00:02.6]} 62...
Ke5 {[%clk 0:00:09.5]} 63. Qa1+ {[%clk 0:00:02.3]} 63... Qd4 {[%clk 0:00:10]}
64. Qe1+ {[%clk 0:00:02.8]} 64... Kd6 {[%clk 0:00:09.9]} 65. Qe8 {[%clk
0:00:02.7]} 65... Bxd3+ {[%clk 0:00:09.2]} 66. Bxd3 {[%clk 0:00:02]} 66... Qxd3+
{[%clk 0:00:09.1]} 67. Kg1 {[%clk 0:00:02.4]} 67... Qe3+ {[%clk 0:00:08.8]} 68.
Qxe3 {[%clk 0:00:01.5]} 68... fxe3 {[%clk 0:00:09.7]} 69. Kf1 {[%clk 0:00:01.9]}
69... Ke5 {[%clk 0:00:10.2]} 70. Ke2 {[%clk 0:00:01.2]} 70... Kd4 {[%clk
0:00:11.1]} 71. g3 {[%clk 0:00:01.6]} 71... Kxc4 {[%clk 0:00:10.6]} 72. Kxe3
{[%clk 0:00:02.1]} 72... Kd5 {[%clk 0:00:10.5]} 73. Kd3 {[%clk 0:00:01.9]} 73...
c6 {[%clk 0:00:10.1]} 74. Kc3 {[%clk 0:00:02.1]} 74... Ke5 {[%clk 0:00:09.5]}
75. Kd3 {[%clk 0:00:02.3]} 75... Kf5 {[%clk 0:00:09.4]} 76. Kc4 {[%clk
0:00:02.5]} 76... h5 {[%clk 0:00:08.1]} 77. a5 {[%clk 0:00:02.8]} 77... bxa5
{[%clk 0:00:08.3]} 78. Kxc5 {[%clk 0:00:03.7]} 78... Ke5 {[%clk 0:00:04.8]} 79.
Kc4 {[%clk 0:00:03.4]} 79... Kd6 {[%clk 0:00:04.3]} 80. Kd4 {[%clk 0:00:02.6]}
80... Ke6 {[%clk 0:00:03.3]} 81. Kc5 {[%clk 0:00:02.3]} 81... Ke5 {[%clk
0:00:03.2]} 82. Kc4 {[%clk 0:00:02.7]} 82... Ke6 {[%clk 0:00:03.3]} 83. Kc5
{[%clk 0:00:02.4]} 83... Ke5 {[%clk 0:00:03.5]} 1/2-1/2

[Event "*** Titled Tuesday Blitz"]
[Site "Chess.com"]
[Date "2020.04.07"]
[Round "6"]
[White "matiss90"]
[Black "ValentinDragnev"]
[Result "1/2-1/2"]
[WhiteElo "2535"]
[BlackElo "2720"]
[TimeControl "180+1"]
[EndTime "14:09:38 PDT"]
[Termination "Game drawn by repetition"]

1. e4 {[%clk 0:03:00.9]} 1... e5 {[%clk 0:02:59.2]} 2. Nf3 {[%clk 0:03:00.7]}
2... Nc6 {[%clk 0:02:59.5]} 3. Bb5 {[%clk 0:03:00.7]} 3... a6 {[%clk 0:02:59.6]}
4. Ba4 {[%clk 0:03:00.8]} 4... Nf6 {[%clk 0:02:57.4]} 5. d3 {[%clk 0:03:00.6]}
5... d6 {[%clk 0:02:55.5]} 6. c3 {[%clk 0:02:51]} 6... g6 {[%clk 0:02:55.1]} 7.
Nbd2 {[%clk 0:02:48]} 7... Bg7 {[%clk 0:02:55]} 8. O-O {[%clk 0:02:45]} 8... O-O
{[%clk 0:02:55.1]} 9. Re1 {[%clk 0:02:41.6]} 9... Nd7 {[%clk 0:02:51.2]} 10. Nf1
{[%clk 0:02:38.5]} 10... Nc5 {[%clk 0:02:50.9]} 11. Bc2 {[%clk 0:02:37.9]} 11...
f5 {[%clk 0:02:39]} 12. exf5 {[%clk 0:02:17.2]} 12... Bxf5 {[%clk 0:02:36.3]}
13. Ne3 {[%clk 0:02:17.2]} 13... Qd7 {[%clk 0:02:17.3]} 14. Nxf5 {[%clk
0:02:13.8]} 14... gxf5 {[%clk 0:02:18.2]} 15. d4 {[%clk 0:02:12]} 15... exd4
{[%clk 0:02:16.8]} 16. Nxd4 {[%clk 0:02:01]} 16... Nxd4 {[%clk 0:02:12.2]} 17.
cxd4 {[%clk 0:01:59.9]} 17... Ne6 {[%clk 0:02:06.3]} 18. d5 {[%clk 0:01:41.1]}
18... Nd4 {[%clk 0:01:57.7]} 19. Be3 {[%clk 0:01:36.1]} 19... Nxc2 {[%clk
0:01:55.8]} 20. Qxc2 {[%clk 0:01:34.6]} 20... f4 {[%clk 0:01:56.4]} 21. Bd2
{[%clk 0:01:24.5]} 21... f3 {[%clk 0:01:53.7]} 22. Re6 {[%clk 0:01:18.4]} 22...
Qf7 {[%clk 0:01:43.2]} 23. Qe4 {[%clk 0:01:15.7]} 23... fxg2 {[%clk 0:01:35.1]}
24. Qxg2 {[%clk 0:01:15]} 24... Kh8 {[%clk 0:01:33]} 25. Rae1 {[%clk 0:01:05.5]}
25... Bd4 {[%clk 0:01:29.8]} 26. Be3 {[%clk 0:00:45.7]} 26... Bxe3 {[%clk
0:01:24.3]} 27. R1xe3 {[%clk 0:00:42]} 27... c6 {[%clk 0:01:08.2]} 28. Re7
{[%clk 0:00:32.9]} 28... Qf6 {[%clk 0:01:04.8]} 29. Rxh7+ {[%clk 0:00:24.6]}
29... Kxh7 {[%clk 0:01:01.1]} 30. Rh3+ {[%clk 0:00:23.4]} 30... Qh6 {[%clk
0:01:01.2]} 31. Qe4+ {[%clk 0:00:21.5]} 31... Kg7 {[%clk 0:00:55.3]} 32. Qe7+
{[%clk 0:00:10.7]} 32... Rf7 {[%clk 0:00:53.7]} 33. Qxf7+ {[%clk 0:00:07.1]}
33... Kxf7 {[%clk 0:00:54.5]} 34. Rxh6 {[%clk 0:00:07.2]} 34... Rd8 {[%clk
0:00:50.8]} 35. Rh7+ {[%clk 0:00:06.5]} 35... Kf6 {[%clk 0:00:50.4]} 36. Rxb7
{[%clk 0:00:05.5]} 36... cxd5 {[%clk 0:00:50.6]} 37. Kf1 {[%clk 0:00:05.6]}
37... Ke5 {[%clk 0:00:47.6]} 38. Rb3 {[%clk 0:00:04.8]} 38... d4 {[%clk
0:00:46.8]} 39. h4 {[%clk 0:00:04]} 39... Rh8 {[%clk 0:00:38]} 40. Rh3 {[%clk
0:00:03.3]} 40... Rh5 {[%clk 0:00:38.6]} 41. Ke2 {[%clk 0:00:03]} 41... a5
{[%clk 0:00:23.9]} 42. f3 {[%clk 0:00:03.2]} 42... a4 {[%clk 0:00:19.9]} 43. Kd3
{[%clk 0:00:04.1]} 43... d5 {[%clk 0:00:20.2]} 44. b3 {[%clk 0:00:03.3]} 44...
axb3 {[%clk 0:00:20]} 45. axb3 {[%clk 0:00:04.2]} 45... Rh8 {[%clk 0:00:17.8]}
46. h5 {[%clk 0:00:04.9]} 46... Rb8 {[%clk 0:00:18.4]} 47. h6 {[%clk 0:00:03.9]}
47... Rxb3+ {[%clk 0:00:17.9]} 48. Kd2 {[%clk 0:00:03.6]} 48... Rb2+ {[%clk
0:00:18.3]} 49. Kd3 {[%clk 0:00:03.5]} 49... Rb3+ {[%clk 0:00:18.8]} 50. Kd2
{[%clk 0:00:03.6]} 50... Rb8 {[%clk 0:00:19.3]} 51. h7 {[%clk 0:00:03.4]} 51...
Rh8 {[%clk 0:00:19.8]} 52. Kd3 {[%clk 0:00:04.3]} 52... Kf6 {[%clk 0:00:14.5]}
53. Kxd4 {[%clk 0:00:05.2]} 53... Kg7 {[%clk 0:00:10.3]} 54. Kxd5 {[%clk
0:00:04.9]} 54... Rd8+ {[%clk 0:00:10.9]} 55. Ke6 {[%clk 0:00:04.9]} 55... Kh8
{[%clk 0:00:11.8]} 56. f4 {[%clk 0:00:04.8]} 56... Ra8 {[%clk 0:00:08.7]} 57. f5
{[%clk 0:00:04.9]} 57... Ra6+ {[%clk 0:00:09]} 58. Ke5 {[%clk 0:00:05]} 58...
Ra5+ {[%clk 0:00:09.2]} 59. Kf4 {[%clk 0:00:05.5]} 59... Ra4+ {[%clk 0:00:09]}
60. Kg5 {[%clk 0:00:06.4]} 60... Ra5 {[%clk 0:00:08.6]} 61. Re3 {[%clk
0:00:05.9]} 61... Kxh7 {[%clk 0:00:07.2]} 62. Kf6 {[%clk 0:00:05.9]} 62... Ra6+
{[%clk 0:00:05.8]} 63. Re6 {[%clk 0:00:05.9]} 63... Ra1 {[%clk 0:00:03.7]} 64.
Kf7 {[%clk 0:00:06]} 64... Ra7+ {[%clk 0:00:02.9]} 65. Re7 {[%clk 0:00:05.7]}
65... Ra8 {[%clk 0:00:02.5]} 66. f6 {[%clk 0:00:05.9]} 66... Kh6 {[%clk
0:00:02.5]} 67. Re5 {[%clk 0:00:05.3]} 67... Ra7+ {[%clk 0:00:02.1]} 68. Re7
{[%clk 0:00:06.2]} 68... Ra8 {[%clk 0:00:02.6]} 69. Ke6 {[%clk 0:00:06.1]} 69...
Ra6+ {[%clk 0:00:02.7]} 70. Kf7 {[%clk 0:00:06.5]} 70... Ra8 {[%clk 0:00:02.9]}
1/2-1/2